bitfinex-derivatives/quotes_ETHF0:USTF0_20260201
["timestamp","ask_amount","ask_price","bid_price","bid_amount"]
[1769914427530,0.20850872,2458.9,2458.0,3.93367541]
[1769914427830,3.84434014,2458.9,2458.0,3.93367541]
[1769914428728,3.63583142,2458.7,2457.7,3.93367541]
[1769914430626,0.20358,2458.8,2457.7,3.93367541]
[1769914430930,0.00492872,2458.9,2458.0,3.93367541]
[1769914433131,3.84434014,2458.9,2458.0,3.93367541]
[1769914433937,0.20850872,2458.9,2458.0,3.93367541]
[1769914434347,0.20850872,2458.9,2458.0,9.93667541]
[1769914434538,0.20850872,2458.9,2458.1,3.93367541]
[1769914435443,2.389,2459.8,2458.1,3.93367541]
[1769914435444,3.83935142,2459.5,2458.1,3.93367541]
[1769914436339,3.84374762,2459.5,2458.2,3.93367541]
[1769914436540,3.84374762,2459.5,2458.2,3.93847598]
[1769914437352,3.84374762,2459.5,2458.3,3.93367541]
[1769914437947,0.2079162,2459.5,2458.3,3.93367541]
[1769914438248,3.84374762,2459.5,2458.3,3.93367541]
[1769914442350,3.63583142,2459.2,2458.3,3.93367541]
[1769914442550,0.20354,2459.3,2458.3,3.93367541]
[1769914443551,3.64022762,2459.5,2458.3,3.93367541]
[1769914444042,3.64022762,2459.5,2458.4,3.93367541]
[1769914445051,3.64022762,2459.5,2458.4,6.3249788]
[1769914445252,3.64022762,2459.5,2458.5,3.93367541]
[1769914446255,3.64022762,2459.5,2458.6,3.93367541]
[1769914448363,3.64022762,2459.5,2458.7,4.00802856]
[1769914449361,3.64022762,2459.5,2458.8,4.00802856]
[1769914449556,4.17095586,2459.2,2458.5,4.42030031]
[1769914450359,4.17095586,2459.2,2458.5,2.39130339]
[1769914450757,3.96740586,2458.9,2458.5,1.97930339]
[1769914450958,3.96740586,2458.9,2458.2,4.81415345]
[1769914450959,3.96740586,2458.7,2458.2,0.00480057]
[1769914451160,0.20358,2458.8,2458.2,4.01282913]
[1769914451564,3.96740586,2459.1,2458.2,4.01282913]
[1769914451862,4.17096586,2459.1,2458.2,4.01282913]
[1769914452260,4.17096586,2459.1,2458.3,4.00802856]
[1769914454168,3.96740586,2458.9,2458.2,0.00480057]
[1769914454465,4.17097586,2458.9,2458.3,4.37124277]
[1769914454663,4.17097586,2458.9,2458.2,0.00480057]
[1769914455172,3.96740586,2458.7,2458.2,0.00480057]
[1769914455363,4.17099586,2458.7,2457.9,3.60701466]
[1769914455563,3.96740586,2458.5,2457.7,7.67901466]
[1769914455760,3.96740586,2458.5,2457.8,4.3601981]
[1769914455961,3.96740586,2458.0,2457.5,3.60701466]
[1769914456161,4.17105586,2458.0,2457.2,3.60701466]
[1769914456365,4.17105586,2458.0,2457.2,3.6106511]
[1769914456564,0.20365,2458.0,2457.3,4.00802856]
[1769914456766,3.96740586,2459.2,2457.3,4.00802856]
[1769914456965,4.17101586,2458.5,2457.3,4.00802856]
[1769914457368,4.17101586,2458.4,2457.3,4.00802856]
[1769914457567,4.17104586,2458.1,2457.3,4.00802856]
[1769914457767,4.17104586,2458.1,2457.2,0.00363644]
[1769914458464,4.17104586,2458.1,2457.2,4.011665]
[1769914458664,0.20364,2458.1,2457.2,4.011665]
[1769914459366,4.17104586,2458.1,2457.2,0.00363644]
[1769914459567,4.17104586,2458.1,2457.2,4.011665]
[1769914461073,0.20364,2458.1,2457.2,4.011665]
[1769914464571,4.17104586,2458.1,2457.2,4.011665]
[1769914468172,0.20364,2458.1,2457.2,4.011665]
[1769914468575,3.96740586,2458.5,2457.2,4.011665]
[1769914468976,4.17099586,2458.7,2457.3,4.00802856]
[1769914471271,4.17099586,2458.7,2457.4,4.00802856]
[1769914472372,3.96740586,2458.5,2457.4,4.00802856]
[1769914474178,0.20363,2458.3,2457.4,4.00802856]
[1769914474379,4.17103586,2458.3,2457.4,4.00802856]
[1769914476677,3.96740586,2458.3,2457.2,4.011665]
[1769914476877,4.17104586,2458.1,2457.2,4.011665]
[1769914477481,0.20364,2458.1,2457.3,3.76663966]
[1769914479378,0.20364,2458.1,2457.4,3.76663966]
[1769914480384,0.20364,2458.1,2457.5,3.76663966]
[1769914480884,0.20359,2458.7,2457.5,3.76663966]
[1769914481076,0.20359,2458.7,2457.6,3.76663966]
[1769914481586,0.20359,2458.7,2457.7,7.97779766]
[1769914481883,0.20359,2458.7,2457.8,3.76663966]
[1769914482083,4.14420358,2458.7,2457.8,3.76663966]
[1769914482383,0.20359,2458.7,2457.8,3.76663966]
[1769914482587,6.02193434,2459.2,2458.0,3.85868824]
[1769914483179,3.63393434,2459.1,2458.0,3.85868824]
[1769914484185,0.20359,2458.7,2458.0,3.85868824]
[1769914485383,0.20359,2458.7,2457.8,8.04102393]
[1769914485384,3.83752434,2458.7,2457.8,8.04102393]
[1769914485582,3.83753434,2458.6,2457.8,3.85868824]
[1769914486879,0.2036,2458.6,2457.8,3.85868824]
[1769914487387,3.83753434,2458.6,2457.8,3.85868824]
[1769914487894,3.63393434,2458.4,2457.6,3.85868824]
[1769914488491,3.63393434,2458.4,2457.7,8.16690609]
[1769914488692,3.63393434,2458.4,2457.7,3.85868824]
[1769914489488,0.20361,2458.5,2457.7,3.85868824]
[1769914491996,3.63393434,2459.0,2457.9,3.85868824]
[1769914492396,0.20356,2459.1,2457.9,3.85868824]
[1769914492597,0.20356,2459.1,2458.2,3.85868824]
[1769914492791,0.20356,2459.1,2458.4,3.85868824]
[1769914493397,0.0043962,2459.5,2458.4,3.85868824]
[1769914493601,0.0043962,2459.5,2458.6,3.85868824]
[1769914494213,0.0043962,2459.5,2458.8,3.85868824]
[1769914495497,0.0043962,2459.5,2458.9,3.85868824]
[1769914495906,3.63393434,2459.9,2458.9,3.85868824]
[1769914496103,0.20352,2459.6,2458.9,3.85868824]
[1769914497103,0.20644177,2459.6,2458.9,3.85868824]
[1769914497299,0.00292177,2459.6,2458.9,3.85868824]
[1769914497515,3.83740434,2460.2,2459.0,3.85868824]
[1769914498003,3.83741434,2460.0,2459.0,3.85868824]
[1769914498404,3.84245193,2460.0,2459.0,3.86159566]
[1769914498606,0.20851759,2460.0,2459.0,3.86159566]
[1769914501400,3.84245193,2460.0,2459.0,3.86159566]
[1769914501606,3.63393434,2459.8,2459.0,0.00290742]
[1769914502206,0.00503759,2460.0,2459.0,3.86159566]
[1769914502407,3.63897193,2460.0,2459.0,3.86159566]
[1769914502607,0.00503759,2460.0,2459.0,3.86159566]
[1769914502910,3.63897193,2460.0,2459.0,3.86159566]
[1769914503407,0.20351,2459.6,2459.0,3.86159566]
[1769914503609,3.83745434,2459.5,2459.0,0.00290742]
[1769914503816,3.83745434,2459.5,2458.7,3.85868824]
[1769914504616,0.20352,2459.5,2458.7,3.85868824]
[1769914504916,0.20352,2459.5,2458.7,3.86247159]
[1769914505213,3.83745434,2459.5,2458.7,3.86247159]
[1769914505717,3.83748434,2459.2,2458.7,0.00378335]
[1769914507516,0.20355,2459.2,2458.7,3.70817488]
[1769914507718,4.1647832,2459.2,2458.7,0.00378335]
[1769914508920,0.20355,2459.2,2458.7,3.70817488]
[1769914510116,0.2035,2459.8,2458.7,3.70817488]
[1769914510322,0.20351,2459.7,2458.7,3.70817488]
[1769914511223,0.20351,2459.7,2458.8,3.70439153]
[1769914511429,0.00503759,2460.0,2459.0,3.70439153]
[1769914511822,0.19497583,2459.7,2459.0,3.70439153]
[1769914512026,0.20345,2460.4,2459.1,10.42019344]
[1769914512226,0.20345,2460.4,2459.2,3.70439153]
[1769914512422,0.20345,2460.4,2459.4,3.70439153]
[1769914512726,0.20345,2460.4,2459.5,3.70439153]
[1769914513128,0.20735856,2460.4,2459.5,3.70439153]
[1769914514127,0.20735856,2460.4,2459.5,6.1178316]
[1769914514427,0.20735856,2460.4,2459.6,3.70439153]
[1769914514820,2.48366635,2461.9,2459.6,3.70439153]
[1769914514821,0.2034,2461.0,2459.6,3.70439153]
[1769914515024,0.2034,2461.0,2459.6,10.42019344]
[1769914515322,0.2034,2461.0,2459.7,3.70439153]
[1769914515927,0.20818302,2461.0,2459.7,3.70439153]
[1769914516317,0.20818302,2461.0,2459.8,7.77339153]
[1769914516522,0.20818302,2461.0,2460.0,3.70439153]
[1769914517527,3.9612332,2461.7,2460.0,3.70439153]
[1769914517727,0.20336,2461.5,2460.0,3.70439153]
[1769914517929,0.20336,2461.5,2460.0,6.1178316]
[1769914518131,0.20336,2461.5,2460.1,6.1178316]
[1769914518432,0.20336,2461.5,2460.4,3.70439153]
[1769914518630,0.20742659,2461.5,2460.6,3.70439153]
[1769914518830,0.20742659,2461.5,2460.6,3.70947654]
[1769914519029,0.20331,2462.1,2460.6,3.70947654]
[1769914519223,0.20332,2462.0,2461.0,3.70439153]
[1769914520131,0.20668584,2462.0,2461.0,3.70439153]
[1769914521229,3.9612332,2463.2,2461.0,3.70439153]
[1769914521427,4.1645132,2462.5,2461.2,3.70439153]
[1769914522327,4.16749225,2462.5,2461.2,3.70439153]
[1769914522523,0.20625905,2462.5,2461.2,3.70439153]
[1769914524438,0.20331,2462.1,2461.2,3.70439153]
[1769914524933,0.20332,2462.0,2461.2,3.70439153]
[1769914525332,4.1645532,2462.0,2460.9,3.70439153]
[1769914525530,4.1646132,2461.2,2460.7,4.067]
[1769914525736,4.1646132,2461.2,2460.6,0.00508501]
[1769914525935,0.20339,2461.1,2460.3,3.70439153]
[1769914527133,0.2034,2461.0,2460.3,3.70724991]
[1769914527437,0.2034,2461.0,2460.3,0.00285838]
[1769914528136,0.20346,2460.3,2459.4,3.70439153]
[1769914528535,0.20349,2460.0,2458.9,3.70439153]
[1769914528938,4.1647332,2459.8,2458.9,3.70439153]
[1769914529140,4.16957435,2459.8,2458.9,3.70754682]
[1769914529336,4.1647432,2459.7,2458.9,3.70754682]
[1769914529537,4.1647432,2459.7,2458.9,0.00315529]
[1769914529733,4.1647632,2459.4,2458.6,4.067]
[1769914529937,4.1648032,2459.0,2458.0,3.70439153]
[1769914530632,4.1648032,2459.0,2458.0,3.70821195]
[1769914531731,0.20357,2458.9,2458.0,3.70821195]
[1769914531930,4.1648432,2458.5,2457.4,6.08939153]
[1769914532136,0.20362,2458.3,2457.4,3.70439153]
[1769914532534,4.1648532,2458.3,2457.4,3.70439153]
[1769914533033,0.20362,2458.3,2457.4,3.70912994]
[1769914533440,4.1648532,2458.3,2457.4,3.70912994]
[1769914533639,4.1648532,2458.3,2457.4,0.00473841]
[1769914534237,3.9612332,2458.1,2457.3,2.69665751]
[1769914535142,0.20363,2458.2,2457.3,6.40620427]
[1769914536638,3.9612332,2458.0,2457.3,0.00515523]
[1769914536837,3.96431369,2458.0,2457.3,0.00515523]
[1769914537241,4.00047497,2457.8,2456.7,3.66447028]
[1769914537641,4.00047497,2457.6,2456.4,3.66447028]
[1769914538238,4.00047497,2457.6,2456.4,3.66894404]
[1769914539244,0.00308049,2458.0,2456.4,3.66894404]
[1769914540938,4.20720546,2458.0,2456.4,3.66894404]
[1769914541344,4.20413497,2457.9,2456.4,3.66894404]
[1769914541545,0.20366,2457.9,2456.4,3.66894404]
[1769914546049,0.20367,2457.8,2456.4,3.66894404]
[1769914546445,4.03586783,2457.8,2456.4,3.66894404]
[1769914546947,0.20367,2457.8,2456.4,3.66894404]
[1769914547148,4.03586783,2457.8,2456.4,3.66894404]
[1769914547354,4.03587783,2457.6,2456.4,3.66894404]
[1769914548055,4.03588783,2457.5,2456.4,3.66894404]
[1769914548455,0.20369,2457.5,2456.4,3.66894404]
[1769914551449,0.00308049,2458.0,2456.4,3.66894404]
[1769914551654,0.00308049,2458.0,2456.5,3.69186888]
[1769914551851,4.03892832,2458.0,2456.5,3.69186888]
[1769914552057,0.20366,2457.9,2456.5,3.69186888]
[1769914552756,4.03585783,2457.9,2456.5,3.69186888]
[1769914552963,0.20366,2457.9,2456.5,3.69186888]
[1769914553360,0.00308049,2458.0,2456.6,3.69186888]
[1769914554663,0.00308049,2458.0,2456.6,6.10530895]
[1769914554857,0.00308049,2458.0,2456.7,3.69186888]
[1769914555363,0.00308049,2458.0,2456.9,3.69186888]
[1769914556263,0.00308049,2458.0,2457.0,3.69186888]
[1769914557160,0.00308049,2458.0,2457.2,3.69186888]
[1769914557460,0.2036,2458.6,2457.4,3.69186888]
[1769914557866,3.83219783,2458.5,2457.4,3.69186888]
[1769914558163,3.83219783,2458.5,2457.4,7.73982619]
[1769914558364,3.83558772,2458.5,2457.5,3.69186888]
[1769914559164,0.20362,2458.3,2457.5,3.69186888]
[1769914561362,0.20362,2458.3,2457.5,6.10530895]
[1769914561662,0.20362,2458.3,2457.5,3.69186888]
[1769914561861,0.20366,2457.9,2457.2,10.17730895]
[1769914562059,0.20366,2457.9,2457.2,7.76386888]
[1769914562456,0.20366,2457.9,2457.2,4.072]
[1769914562660,4.03585783,2457.9,2457.1,8.38444007]
[1769914562859,0.20366,2457.8,2456.9,6.10530895]
[1769914563164,0.20368,2457.7,2456.9,6.10530895]
[1769914563562,4.03587783,2457.7,2456.9,6.10530895]
[1769914563762,4.03587783,2457.7,2456.9,3.69186888]
[1769914564060,4.03587783,2457.7,2456.9,7.58896264]
[1769914565961,4.03587783,2457.7,2456.9,3.69186888]
[1769914566160,0.20368,2457.7,2456.9,3.69186888]
[1769914568766,0.20368,2457.7,2457.0,3.61733421]
[1769914568966,0.20362,2458.3,2457.2,3.61733421]
[1769914569267,0.20362,2458.3,2457.3,9.92379262]
[1769914569466,0.20362,2458.3,2457.4,3.61733421]
[1769914572772,0.20362,2458.3,2457.5,3.61733421]
[1769914572971,0.20362,2458.3,2457.7,3.61733421]
[1769914573365,0.00338989,2458.5,2457.7,3.61733421]
[1769914574269,0.20363,2458.3,2457.6,3.61733421]
[1769914575262,3.64517106,2458.5,2457.6,3.61733421]
[1769914575467,3.64517106,2458.5,2457.4,3.61733421]
[1769914575468,0.20363,2458.2,2457.4,3.61733421]
[1769914576567,0.00338989,2458.5,2457.4,3.61733421]
[1769914576767,0.00338989,2458.5,2457.6,3.61733421]
[1769914576970,0.20699989,2458.5,2457.6,3.61733421]
[1769914579769,0.20366,2457.9,2457.3,3.61733421]
[1769914591483,9.72834205,2458.4,2457.3,3.61733421]
[1769914591678,6.08995077,2458.5,2457.3,3.61733421]
[1769914592285,9.73173194,2458.5,2457.3,3.61733421]
[1769914592484,9.72834205,2458.4,2457.3,3.61733421]
[1769914592984,3.64178117,2458.4,2457.3,3.61733421]
[1769914593174,0.20366,2457.9,2457.3,3.61733421]
[1769914597187,3.80040197,2458.1,2457.3,3.61733421]
[1769914597387,0.2037,2457.4,2456.6,6.50073628]
[1769914597583,0.2037,2457.4,2456.6,10.36176002]
[1769914598282,0.2037,2457.4,2456.7,3.86102374]
[1769914598483,0.20371,2457.3,2456.6,4.072]
[1769914599387,0.20371,2457.3,2456.7,3.68061404]
[1769914600281,0.20372,2457.2,2456.7,3.68061404]
[1769914600789,0.20372,2457.2,2456.7,2.94725348]
[1769914603990,3.99651638,2457.2,2456.5,3.95051353]
[1769914608186,0.20372,2457.2,2456.5,3.95051353]
[1769914611290,6.08656088,2457.8,2456.5,3.95051353]
[1769914611496,3.79279638,2457.7,2456.5,3.95051353]
[1769914612195,0.20371,2457.2,2456.5,3.95051353]
[1769914613498,3.79279638,2457.9,2456.5,3.95051353]
[1769914613694,0.20368,2457.6,2456.5,3.95051353]
[1769914616791,3.79279638,2458.1,2456.7,3.95051353]
[1769914616999,3.99643638,2458.1,2456.7,3.95051353]
[1769914618297,0.20364,2458.1,2456.7,3.95051353]
[1769914618802,0.20364,2458.1,2456.8,6.37924981]
[1769914618990,0.20364,2458.1,2456.9,3.95051353]
[1769914619198,0.20364,2458.1,2457.0,3.95051353]
[1769914621906,0.00338989,2458.5,2457.2,6.37924981]
[1769914622096,0.00338989,2458.5,2457.4,3.95051353]
[1769914622295,0.00338989,2458.5,2457.5,3.95051353]
[1769914622999,3.79279638,2458.3,2457.5,3.95051353]
[1769914624600,0.20361,2458.4,2457.5,3.95051353]
[1769914625813,3.99640638,2458.4,2457.5,3.95051353]
[1769914626014,3.79279638,2458.3,2457.5,3.95051353]
[1769914626211,3.79279638,2458.3,2457.1,3.95051353]
[1769914627414,0.20364,2458.1,2457.1,3.95051353]
[1769914629810,3.77013575,2457.9,2457.1,3.95051353]
[1769914630017,3.97381575,2457.6,2456.9,3.86870013]
[1769914630219,3.97382575,2457.5,2456.7,4.072]
[1769914630418,3.97382575,2457.5,2456.7,7.94070013]
[1769914631217,3.97382575,2457.5,2456.8,3.86870013]
[1769914633223,3.97383575,2457.4,2456.7,4.072]
[1769914634521,3.77013575,2457.3,2456.7,4.072]
[1769914634922,3.77013575,2457.3,2456.5,3.86870013]
[1769914635318,0.20371,2457.2,2456.5,3.86870013]
[1769914635920,3.77013575,2456.8,2456.4,3.76e-06]
[1769914636118,2.388,2457.3,2455.8,2.42873628]
[1769914636119,3.97389575,2456.7,2455.8,3.86870013]
[1769914637022,3.97908404,2456.7,2455.8,3.87249044]
[1769914639320,0.20379,2456.3,2455.8,0.00379031]
[1769914639526,3.97393575,2456.2,2455.7,4.072]
[1769914640321,3.97393575,2456.2,2455.6,3.86870013]
[1769914640519,3.97393575,2456.2,2455.6,3.87274141]
[1769914640723,3.77013575,2456.0,2454.7,6.50173628]
[1769914640924,3.77013575,2455.7,2454.7,4.073]
[1769914641122,0.20384,2455.7,2454.7,4.073]
[1769914641823,3.77013575,2456.3,2454.7,4.07594479]
[1769914642822,3.77013575,2456.3,2454.8,3.86870013]
[1769914643328,0.20384,2455.7,2454.8,3.86870013]
[1769914644723,3.97390575,2456.6,2454.9,3.86870013]
[1769914645023,3.97391575,2456.4,2454.9,3.86870013]
[1769914646029,0.20378,2456.4,2454.9,3.86870013]
[1769914647328,3.97391575,2456.4,2454.9,3.86870013]
[1769914647525,3.97391575,2456.4,2455.1,1.69101392]
[1769914647725,0.20378,2456.4,2455.2,3.86870013]
[1769914651128,3.97391575,2456.4,2455.2,3.86870013]
[1769914660435,0.20378,2456.4,2455.2,3.86870013]
[1769914661134,4.09964951,2456.4,2455.2,3.86870013]
[1769914663237,4.09964951,2456.4,2455.3,3.94126209]
[1769914665539,0.20378,2456.4,2455.4,3.94126209]
[1769914667140,3.88534963,2456.4,2455.4,3.94126209]
[1769914667941,3.68156963,2455.9,2455.1,0.956]
[1769914668141,3.68156963,2455.9,2455.1,3.94126209]
[1769914669442,0.20381,2456.0,2455.1,3.94126209]
[1769914669643,0.20381,2456.0,2455.1,6.36999837]
[1769914670044,0.20381,2456.0,2455.2,3.94126209]
[1769914671351,0.20381,2456.0,2455.3,3.94126209]
[1769914671738,3.88537963,2456.0,2455.1,3.7263407]
[1769914671940,3.68156963,2455.9,2455.1,3.7263407]
[1769914672148,3.88539963,2455.8,2455.0,10.09633907]
[1769914672546,3.88539963,2455.8,2455.0,6.15507698]
[1769914673037,3.88539963,2455.8,2454.9,6.15507698]
[1769914673238,3.88539963,2455.8,2455.0,6.15507698]
[1769914673437,3.88539963,2455.8,2455.0,3.7263407]
[1769914673641,3.88539963,2455.8,2455.0,7.66760279]
[1769914674545,3.88539963,2455.8,2455.0,3.94126209]
[1769914675146,3.88539963,2455.8,2455.0,7.81324129]
[1769914675748,3.88539963,2455.8,2455.0,3.94126209]
[1769914677053,3.88539963,2455.8,2455.0,7.81184614]
[1769914677252,3.88539963,2455.8,2455.0,3.94126209]
[1769914679952,0.20383,2455.8,2455.0,3.94126209]
[1769914686656,3.88539963,2455.8,2454.9,3.94126209]
[1769914696268,3.88539963,2455.8,2455.0,3.86111333]
[1769914697769,0.20383,2455.8,2455.0,3.86111333]
[1769914698273,0.20383,2455.8,2455.1,3.86111333]
[1769914701677,3.85645909,2455.9,2454.7,4.81229767]
[1769914701678,3.85645909,2455.3,2454.8,6.18473436]
[1769914701974,3.85645909,2455.3,2454.7,3.75988232]
[1769914702175,3.85645909,2455.3,2454.7,0.00294479]
[1769914702671,4.06033909,2455.3,2454.7,0.00294479]
[1769914702873,3.85645909,2455.1,2454.7,0.00294479]
[1769914704977,3.85645909,2455.1,2454.2,6.063]
[1769914704978,4.06034909,2455.1,2454.2,6.063]
[1769914705874,4.06034909,2455.1,2454.2,6.06718809]
[1769914706074,4.06034909,2455.1,2454.2,0.00418809]
[1769914708270,4.06034909,2455.1,2454.2,3.86530142]
[1769914713884,4.06034909,2455.1,2454.2,0.00418809]
[1769914716489,4.06034909,2455.1,2454.2,3.86530142]
[1769914717188,4.06034909,2455.1,2454.2,3.7383756]
[1769914718288,4.06034909,2455.1,2454.2,0.00418809]
[1769914718488,3.72179264,2454.9,2454.2,0.00418809]
[1769914718691,3.72481675,2454.9,2454.2,0.00418809]
[1769914719985,3.72179264,2454.6,2453.6,6.16292379]
[1769914720180,3.72179264,2454.1,2453.5,4.076]
[1769914720488,3.92578264,2453.9,2453.1,3.73418751]
[1769914720882,3.92579264,2453.7,2452.8,3.73418751]
[1769914721081,3.92579264,2453.7,2452.8,0.00331958]
[1769914721291,3.72179264,2453.5,2452.8,0.00331958]
[1769914723189,3.92581264,2453.5,2452.8,0.00331958]
[1769914723490,3.96998891,2453.2,2452.3,3.88399451]
[1769914723690,3.96998891,2453.2,2451.9,3.88399451]
[1769914723888,3.96998891,2453.0,2451.9,3.88399451]
[1769914724289,3.97411632,2453.0,2451.9,3.88846242]
[1769914724690,0.00412741,2453.0,2451.9,3.88846242]
[1769914727093,3.96998891,2453.4,2451.9,3.88846242]
[1769914727995,3.97424542,2453.4,2451.9,3.88846242]
[1769914728183,4.17827542,2453.4,2451.9,3.88846242]
[1769914728892,3.96998891,2453.0,2451.9,3.88846242]
[1769914731397,0.20405,2453.1,2451.9,3.88846242]
[1769914731899,3.96998891,2453.2,2451.9,3.88846242]
[1769914732196,3.97424542,2453.4,2451.9,3.88846242]
[1769914733395,0.00425651,2453.4,2451.9,6.3171987]
[1769914733595,0.00425651,2453.4,2452.0,6.51687079]
[1769914733791,0.00425651,2453.4,2452.2,3.88399451]
[1769914734299,3.96998891,2454.1,2452.3,3.88399451]
[1769914734690,3.96998891,2454.1,2452.5,3.88399451]
[1769914734898,3.96998891,2454.1,2452.7,3.88399451]
[1769914735397,3.97491806,2454.1,2452.7,3.88399451]
[1769914737190,0.00492915,2454.1,2452.7,3.88399451]
[1769914739697,3.97491806,2454.1,2452.7,3.88399451]
[1769914742500,3.96998891,2453.8,2452.7,3.88399451]
[1769914742702,3.96998891,2453.8,2452.6,10.35499451]
[1769914743003,4.17398891,2453.8,2452.6,10.35499451]
[1769914744604,4.17398891,2453.8,2452.7,3.88399451]
[1769914744805,0.00492915,2454.1,2452.7,3.88399451]
[1769914744806,3.97491806,2454.1,2452.7,3.88399451]
[1769914745504,0.00492915,2454.1,2452.7,3.88399451]
[1769914745807,0.00492915,2454.1,2452.9,3.88399451]
[1769914746203,3.97491806,2454.1,2452.9,3.88399451]
[1769914748002,0.00492915,2454.1,2452.9,3.88399451]
[1769914749308,0.00492915,2454.1,2453.0,3.80323094]
[1769914750300,3.82329214,2454.7,2453.3,3.80323094]
[1769914750506,3.82329214,2454.7,2453.5,3.80323094]
[1769914751308,3.82762518,2454.7,2453.5,3.80323094]
[1769914752105,3.82329214,2454.4,2453.4,3.80323094]
[1769914753504,4.02724214,2454.4,2453.4,3.80323094]
[1769914755906,3.82329214,2454.0,2452.7,2.4337446]
[1769914756113,3.82329214,2454.0,2452.8,3.80323094]
[1769914756713,0.20397,2454.1,2452.8,6.23697554]
[1769914756913,3.82329214,2454.4,2453.1,3.80323094]
[1769914757213,3.82329214,2454.4,2453.3,3.80323094]
[1769914757712,3.82329214,2454.4,2453.4,3.80323094]
[1769914759014,3.82329214,2454.4,2453.3,3.80323094]
[1769914759215,3.82329214,2454.4,2453.5,3.80323094]
[1769914760416,4.02722214,2454.6,2453.5,3.80323094]
[1769914761607,3.82329214,2454.6,2453.5,3.80323094]
[1769914761810,0.00433304,2454.7,2453.6,3.80323094]
[1769914762217,0.00433304,2454.7,2453.7,3.80323094]
[1769914762413,0.00433304,2454.7,2453.8,3.80323094]
[1769914766016,0.00433304,2454.7,2453.9,3.80323094]
[1769914767926,3.82329214,2455.1,2453.9,3.80323094]
[1769914768128,3.82329214,2455.4,2454.1,3.80323094]
[1769914768329,3.82329214,2455.4,2454.3,3.80323094]
[1769914769132,3.8267266,2455.4,2454.3,3.80323094]
[1769914772635,0.00343446,2455.4,2454.3,3.80323094]
[1769914773137,0.00343446,2455.4,2454.4,3.80323094]
[1769914775335,3.82329214,2456.0,2454.7,3.80323094]
[1769914776332,3.82329214,2455.7,2454.5,3.80323094]
[1769914776834,4.02713214,2455.7,2454.5,3.80323094]
[1769914781440,3.8920394,2455.5,2454.3,7.80841591]
[1769914783136,4.0958994,2455.5,2454.4,3.8657389]
[1769914788240,3.79052893,2455.4,2454.4,3.8657389]
[1769914788441,3.79052893,2455.3,2454.3,4.077]
[1769914788835,3.79052893,2455.2,2454.3,4.077]
[1769914789241,3.79052893,2455.0,2454.3,4.077]
[1769914789441,3.79052893,2455.0,2454.3,4.06430335]
[1769914790341,3.79052893,2454.9,2454.3,4.06430335]
[1769914790646,40.2499221,2454.9,2453.8,3.8657389]
[1769914790847,36.45939317,2454.4,2453.5,2.43205636]
[1769914791041,3.79052893,2454.3,2453.1,3.8657389]
[1769914791343,3.99450893,2454.0,2452.8,3.8657389]
[1769914791848,3.79052893,2453.6,2452.8,0.0034993]
[1769914795544,0.204,2453.7,2452.8,3.8692382]
[1769914795845,3.99452893,2453.7,2452.8,0.0034993]
[1769914796037,3.99454893,2453.5,2452.8,0.0034993]
[1769914798247,3.99454893,2453.5,2452.4,3.8657389]
[1769914799246,3.99454893,2453.5,2452.4,3.87054075]
[1769914800545,3.99952798,2454.0,2452.4,3.87054075]
[1769914801139,3.79052893,2453.8,2452.4,3.87054075]
[1769914802547,0.00501905,2454.0,2452.4,3.87054075]
[1769914803441,3.79554798,2454.0,2452.4,3.87054075]
[1769914804448,0.00501905,2454.0,2452.6,3.8657389]
[1769914807057,0.00501905,2454.0,2452.6,4.0698289]
[1769914809359,0.00501905,2454.0,2452.7,3.79783815]
[1769914809560,0.00501905,2454.0,2452.9,3.79783815]
[1769914810857,4.12582681,2454.8,2453.0,3.79783815]
[1769914811256,4.12582681,2454.8,2453.1,3.79783815]
[1769914811460,3.92191681,2455.0,2453.2,4.00187815]
[1769914811762,3.92511998,2455.0,2453.4,3.79783815]
[1769914814765,3.92511998,2455.0,2453.3,4.079]
[1769914814766,3.92191681,2454.5,2453.3,4.079]
[1769914815861,3.92191681,2454.5,2453.2,3.79783815]
[1769914816264,4.12585681,2454.5,2453.2,3.79783815]
[1769914816460,4.12585681,2454.5,2452.9,3.79783815]
[1769914816661,3.92191681,2454.3,2452.9,3.79783815]
[1769914820166,4.12586681,2454.3,2452.9,3.79783815]
[1769914820369,4.12591681,2453.8,2452.7,7.87583815]
[1769914823168,4.12591681,2453.8,2452.8,3.79783815]
[1769914825773,0.20393,2454.6,2453.0,4.00189815]
[1769914826069,3.92191681,2454.8,2453.5,3.79783815]
[1769914826461,3.92191681,2454.8,2453.6,3.79783815]
[1769914826867,3.92511998,2455.0,2453.6,3.79783815]
[1769914827170,4.12901998,2455.0,2453.7,3.79783815]
[1769914827868,0.20710317,2455.0,2453.7,7.87683815]
[1769914828063,0.20710317,2455.0,2453.8,3.79783815]
[1769914828268,0.00320317,2455.0,2454.0,3.79783815]
[1769914828974,0.20386,2455.5,2454.1,3.79783815]
[1769914829175,3.92191681,2455.8,2454.1,6.22989451]
[1769914829370,3.92191681,2455.8,2454.2,3.79783815]
[1769914829975,3.9251042,2455.8,2454.2,3.80110851]
[1769914830371,3.9251042,2455.8,2454.3,3.79783815]
[1769914830875,4.1289342,2455.8,2454.3,3.79783815]
[1769914831679,3.92191681,2455.6,2454.3,3.79783815]
[1769914836877,3.92191681,2455.4,2454.3,3.79783815]
[1769914838987,3.87137625,2455.2,2454.2,3.94984624]
[1769914839178,0.20388,2455.3,2454.2,3.94984624]
[1769914839979,3.87137625,2455.4,2454.2,3.94984624]
[1769914840183,3.87137625,2455.6,2454.2,3.94984624]
[1769914840580,0.20701739,2455.8,2454.2,3.94984624]
[1769914840782,4.07839364,2455.8,2454.2,3.94984624]
[1769914841283,4.07522625,2455.6,2454.2,3.94984624]
[1769914844781,0.20386,2455.5,2454.2,3.94984624]
[1769914844987,3.96464318,2455.2,2454.2,3.94984624]
[1769914848585,4.16852318,2455.2,2454.2,3.94984624]
[1769914848785,4.84602978,2455.8,2454.2,0.00327036]
[1769914848786,3.96464318,2454.7,2454.2,0.00327036]
[1769914848987,3.96464318,2454.7,2453.8,3.88116261]
[1769914849987,3.96464318,2454.7,2453.8,3.88463654]
[1769914850387,3.96464318,2454.7,2453.2,3.59499711]
[1769914850388,3.96464318,2454.5,2453.4,3.88116261]
[1769914850584,3.96464318,2454.5,2452.9,3.88116261]
[1769914851493,3.96464318,2454.0,2452.9,3.88459574]
[1769914851692,3.96935619,2454.0,2452.9,3.88459574]
[1769914855790,0.00471301,2454.0,2452.9,3.88459574]
[1769914856592,3.96935619,2454.0,2452.9,3.88459574]
[1769914857292,0.00471301,2454.0,2452.9,3.88459574]
[1769914861295,3.96464318,2453.8,2452.9,3.88459574]
[1769914861595,4.16864318,2453.8,2452.9,3.88459574]
[1769914861798,0.204,2453.8,2452.9,3.88459574]
[1769914861993,0.00471301,2454.0,2452.9,3.88459574]
[1769914862298,0.00471301,2454.0,2452.9,6.31363548]
[1769914862492,3.96464318,2454.8,2453.0,3.88116261]